[Event "Lliga Catalana 2024"]
[Site "Catalonia"]
[Date "2024.03.02"]
[Round "7.8"]
[White "Serra Canals, Oriol"]
[Black "Travesset Sagre, Jan"]
[Result "0-1"]
[ECO "D14"]
[WhiteElo "2158"]
[BlackElo "2209"]
[Annotator "RC"]
[PlyCount "78"]
[EventDate "2024.01.18"]
[EventType "team-tourn"]
[EventCountry "ESP"]
[SourceTitle "playchess.com"]
[Source "ChessBase"]
[SourceQuality "1"]
[TimeControl "5400+30"]

1. d4 {[%emt 0:00:51]} d5 {[%emt 0:00:33]} 2. c4 {[%emt 0:00:25]} c6 {[%emt 0:00:29]} 3. Nf3 {[%emt 0:00:31]} Nf6 {[%emt 0:00:10]} 4. cxd5 {[%emt 0:01:06]} cxd5 {[%emt 0:00:17]} 5. Nc3 {[%emt 0:00:11]} Nc6 {[%emt 0:00:11]} 6. Bf4 {[%emt 0:01:19]} Bf5 {[%emt 0:00:20]} 7. Qb3 {[%emt 0:01:33]} Na5 {[%emt 0:00:20]} 8. Qa4+ {[%emt 0:00:26]} Bd7 {[%emt 0:00:19]} 9. Qc2 {[%emt 0:00:17]} Rc8 {[%emt 0:00:03]} 10. e3 {[%emt 0:01:30]} b5 {[%emt 0:00:36]} 11. a3 {[%emt 0:00:56]} e6 {[%emt 0:02:30]} 12. Bd3 {[%emt 0:04:23]} Nc4 {[%emt 0:05:42]} 13. O-O {[%emt 0:04:27]} Be7 {[%emt 0:04:30]} 14. h3 {[%emt 0:01:12]} O-O {[%emt 0:09:38]} 15. Ne5 {[%emt 0:02:10]} a6 {[%emt 0:21:43]} 16. Rfd1 {[%emt 0:09:38]} Bc6 {[%emt 0:05:19]} 17. Qe2 {[%emt 0:06:37]} Qb6 {[%emt 0:10:52]} 18. Rac1 {[%emt 0:07:57]} Rfd8 {[%emt 0:02:22]} 19. Bb1 {[%emt 0:17:38]} Nxe5 {[%emt 0:19:41]} 20. Bxe5 {[%emt 0:02:47]} Nd7 {[%emt 0:02:08]} 21. Bh2 {[%emt 0:02:25]} Nf8 {[%emt 0:00:47]} 22. Bd3 {[%emt 0:13:50]} Be8 {[%emt 0:02:16]} 23. Na2 {[%emt 0:02:57]} a5 {[%emt 0:03:06]} 24. b4 {[%emt 0:00:51]} axb4 {[%emt 0:01:17]} 25. Nxb4 {[%emt 0:00:40]} Qa5 {[%emt 0:01:50]} 26. Qb2 {[%emt 0:01:08]} Qa4 {[%emt 0:03:29]} 27. Ra1 {[%emt 0:12:00]} Nd7 {[%emt 0:00:43]} 28. Rdc1 {[%emt 0:01:05]} Nb6 {[%emt 0:02:30]} 29. Bc7 {[%emt 0:00:55]} Nc4 {[%emt 0:00:00]} 30. Bxc4 {[%emt 0:01:17]} Rxc7 {[%emt 0:00:01]} 31. Bd3 {[%emt 0:01:39]} Rdc8 {[%emt 0:00:20]} 32. Rxc7 {[%emt 0:00:21]} Rxc7 {[%emt 0:00:01]} 33. Rc1 {[%emt 0:00:43]} Rxc1+ {[%emt 0:01:15]} 34. Qxc1 {[%emt 0:00:01]} Bxb4 {[%emt 0:00:10]} 35. axb4 {[%emt 0:01:24]} Qxb4 {[%emt 0:00:07]} 36. Qc8 {[%emt 0:00:09]} Qf8 {[%emt 0:01:29]} 37. Kf1 {[%emt 0:00:31]} b4 {[%emt 0:00:44]} 38. Qb8 {[%emt 0:00:12]} f6 {[%emt 0:01:03]} 39. Ke2 {[%emt 0:00:07]} Bh5+ {[%emt 0:00:07]} 0-1

[Event "Lliga Catalana 2024"]
[Site "Catalonia"]
[Date "2024.03.02"]
[Round "7.8"]
[White "Fernandez Goyanes, Francesc X"]
[Black "Ibanez Tarradellas, Eduardo"]
[Result "0-1"]
[ECO "D00"]
[WhiteElo "2053"]
[BlackElo "2164"]
[Annotator "RC"]
[PlyCount "80"]
[EventDate "2024.01.18"]
[EventType "team-tourn"]
[EventCountry "ESP"]
[SourceTitle "playchess.com"]
[Source "ChessBase"]
[SourceQuality "1"]
[TimeControl "5400+30"]

1. d4 {[%emt 0:00:14]} d5 {[%emt 0:00:34]} 2. Nc3 {[%emt 0:00:26]} Nf6 {[%emt 0:03:05]} 3. Bf4 {[%emt 0:00:28]} Bf5 {[%emt 0:03:38]} 4. f3 {[%emt 0:00:16]} e6 {[%emt 0:00:18]} 5. g4 {[%emt 0:00:08]} Bg6 {[%emt 0:00:16]} 6. h4 {[%emt 0:00:12]} h6 {[%emt 0:00:54]} 7. e3 {[%emt 0:00:08]} a6 {[%emt 0:03:09]} 8. Bd3 {[%emt 0:01:09]} Bxd3 {[%emt 0:00:35]} 9. Qxd3 {[%emt 0:01:20]} c5 {[%emt 0:00:18]} 10. dxc5 {[%emt 0:10:38]} Nc6 {[%emt 0:02:26]} 11. O-O-O {[%emt 0:02:10]} Bxc5 {[%emt 0:00:17]} 12. g5 {[%emt 0:03:50]} hxg5 {[%emt 0:03:41]} 13. Bxg5 {[%emt 0:00:24]} Qa5 {[%emt 0:00:53]} 14. Kb1 {[%emt 0:32:58]} Ne5 {[%emt 0:03:56]} 15. Qe2 {[%emt 0:00:42]} Bb4 {[%emt 0:21:02]} 16. e4 {[%emt 0:05:16]} Bxc3 {[%emt 0:00:24]} 17. bxc3 {[%emt 0:00:09]} Nc4 {[%emt 0:00:16]} 18. Bc1 {[%emt 0:00:28]} Qxc3 {[%emt 0:00:48]} 19. Rd3 {[%emt 0:02:56]} Qe5 {[%emt 0:02:02]} 20. exd5 {[%emt 0:01:57]} Qxe2 {[%emt 0:02:39]} 21. Nxe2 {[%emt 0:00:11]} Nxd5 {[%emt 0:00:06]} 22. Ng3 {[%emt 0:03:47]} O-O-O {[%emt 0:05:00]} 23. Ne4 {[%emt 0:01:12]} Ne5 {[%emt 0:11:43]} 24. Rb3 {[%emt 0:01:04]} b5 {[%emt 0:04:21]} 25. Bb2 {[%emt 0:05:34]} Ng6 {[%emt 0:01:11]} 26. c4 {[%emt 0:06:03]} bxc4 {[%emt 0:01:43]} 27. Rc1 {[%emt 0:00:39]} Rxh4 {[%emt 0:08:23]} 28. Rxc4+ {[%emt 0:02:42]} Kd7 {[%emt 0:00:49]} 29. Bxg7 {[%emt 0:00:48]} f5 {[%emt 0:05:09]} 30. Nc5+ {[%emt 0:07:29]} Ke7 {[%emt 0:02:52]} 31. Rxh4 {[%emt 0:00:51]} Nxh4 {[%emt 0:00:06]} 32. Nxa6 {[%emt 0:00:22]} Kd6 {[%emt 0:03:04]} 33. Bd4 {[%emt 0:02:48]} Rc8 {[%emt 0:01:49]} 34. Bf2 {[%emt 0:02:22]} Ng6 {[%emt 0:02:13]} 35. Be1 {[%emt 0:00:47]} Rc6 {[%emt 0:04:57]} 36. Nb4 {[%emt 0:02:00]} Rb6 {[%emt 0:02:00]} 37. Nd3 {[%emt 0:01:39]} Rxb3+ {[%emt 0:02:23]} 38. axb3 {[%emt 0:00:02]} Kc6 {[%emt 0:00:00]} 39. Kc2 {[%emt 0:00:51]} Kb5 {[%emt 0:00:00]} 40. Nb2 {[%emt 0:02:22]} Ne5 {[%emt 0:00:10]} 0-1

[Event "Lliga Catalana 2024"]
[Site "Catalonia"]
[Date "2024.03.02"]
[Round "7.9"]
[White "Serra Pages, Jordi"]
[Black "Comellas Blanchart, Jordi"]
[Result "1/2-1/2"]
[ECO "D59"]
[WhiteElo "2187"]
[BlackElo "1985"]
[Annotator "ChessBase"]
[PlyCount "50"]
[EventDate "2024.01.18"]
[EventType "team-tourn"]
[EventCountry "ESP"]
[SourceTitle "playchess.com"]
[Source "ChessBase"]
[SourceQuality "1"]
[TimeControl "5400+30"]

1. d4 {[%emt 0:00:07]} d5 {[%emt 0:00:05]} 2. c4 {[%emt 0:00:21]} e6 {[%emt 0:00:07]} 3. Nc3 {[%emt 0:00:12]} Nf6 {[%emt 0:00:07]} 4. Bg5 {[%emt 0:01:51]} Be7 {[%emt 0:00:15]} 5. e3 {[%emt 0:00:22]} h6 {[%emt 0:00:09]} 6. Bh4 {[%emt 0:01:02]} O-O {[%emt 0:00:16]} 7. Nf3 {[%emt 0:01:24]} b6 {[%emt 0:00:42]} 8. cxd5 {[%emt 0:03:46]} Nxd5 {[%emt 0:00:21]} 9. Bxe7 {[%emt 0:04:16]} Qxe7 {[%emt 0:00:14]} 10. Nxd5 {[%emt 0:02:26]} exd5 {[%emt 0:00:16]} 11. Bd3 {[%emt 0:02:03]} Be6 {[%emt 0:00:36]} 12. O-O {[%emt 0:02:28]} c5 {[%emt 0:00:41]} 13. b3 {[%emt 0:07:23]} Nd7 {[%emt 0:10:04]} 14. Qe2 {[%emt 0:02:35]} a5 {[%emt 0:08:19]} 15. e4 {[%emt 0:16:29]} dxe4 {[%emt 0:01:46]} 16. Bxe4 {[%emt 0:01:21]} Rae8 {[%emt 0:00:31]} 17. Rfe1 {[%emt 0:01:29]} Qd6 {[%emt 0:12:29]} 18. Qd2 {[%emt 0:09:55]} Nf6 {[%emt 0:06:25]} 19. dxc5 {[%emt 0:03:51]} Qxc5 {[%emt 0:01:47]} 20. Rac1 {[%emt 0:01:29]} Qh5 {[%emt 0:11:31]} 21. Bc6 {[%emt 0:08:00]} Rd8 {[%emt 0:02:07]} 22. Qb2 {[%emt 0:09:15]} Bd5 {[%emt 0:12:24]} 23. h3 {[%emt 0:03:59]} Bxc6 {[%emt 0:07:59]} 24. Rxc6 {[%emt 0:00:05]} Qb5 {[%emt 0:01:07]} 25. Rcc1 {[%emt 0:06:16]} Rfe8 {[%emt 0:22:42]} 1/2-1/2

[Event "Lliga Catalana 2024"]
[Site "Catalonia"]
[Date "2024.03.02"]
[Round "7.9"]
[White "Castelltort Fernandez, Antonio"]
[Black "Pla Almenar, Nel"]
[Result "0-1"]
[ECO "B21"]
[WhiteElo "2164"]
[BlackElo "2048"]
[Annotator "RC"]
[PlyCount "66"]
[EventDate "2024.01.18"]
[EventType "team-tourn"]
[EventCountry "ESP"]
[SourceTitle "playchess.com"]
[Source "ChessBase"]
[SourceQuality "1"]
[TimeControl "5400+30"]

1. e4 {[%emt 0:00:14]} c5 {[%emt 0:00:07]} 2. d3 {[%emt 0:00:13]} e6 {[%emt 0:00:08]} 3. f4 {[%emt 0:00:27]} d5 {[%emt 0:00:11]} 4. Be2 {[%emt 0:00:44]} Nc6 {[%emt 0:02:05]} 5. Nf3 {[%emt 0:00:28]} Nf6 {[%emt 0:01:19]} 6. e5 {[%emt 0:00:46]} Ng4 {[%emt 0:07:04]} 7. O-O {[%emt 0:05:29]} Be7 {[%emt 0:01:30]} 8. c3 {[%emt 0:00:46]} b5 {[%emt 0:09:36]} 9. d4 {[%emt 0:06:04]} Qb6 {[%emt 0:06:41]} 10. h3 {[%emt 0:09:56]} Nh6 {[%emt 0:00:36]} 11. g4 {[%emt 0:01:35]} b4 {[%emt 0:05:41]} 12. Rf2 {[%emt 0:09:40]} a5 {[%emt 0:03:19]} 13. a3 {[%emt 0:03:27]} Rb8 {[%emt 0:14:38]} 14. Bf1 {[%emt 0:04:46]} cxd4 {[%emt 0:17:20]} 15. cxd4 {[%emt 0:01:08]} Ba6 {[%emt 0:00:31]} 16. Bxa6 {[%emt 0:12:13]} Qxa6 {[%emt 0:00:04]} 17. a4 {[%emt 0:01:01]} b3 {[%emt 0:04:07]} 18. Nc3 {[%emt 0:00:41]} Qc4 {[%emt 0:04:33]} 19. Nb5 {[%emt 0:10:33]} Nb4 {[%emt 0:01:41]} 20. Na3 {[%emt 0:07:03]} Qd3 {[%emt 0:02:43]} 21. Qxd3 {[%emt 0:13:15]} Nxd3 {[%emt 0:00:05]} 22. Rf1 {[%emt 0:00:18]} Bxa3 {[%emt 0:01:46]} 23. Rxa3 {[%emt 0:01:14]} Kd7 {[%emt 0:02:20]} 24. Bd2 {[%emt 0:01:46]} Rhc8 {[%emt 0:00:35]} 25. Bc3 {[%emt 0:01:39]} Nxf4 {[%emt 0:00:50]} 26. Bd2 {[%emt 0:03:11]} Nd3 {[%emt 0:01:11]} 27. Bxh6 {[%emt 0:00:09]} gxh6 {[%emt 0:00:04]} 28. Nd2 {[%emt 0:00:11]} Ke7 {[%emt 0:03:01]} 29. Nxb3 {[%emt 0:01:01]} Rc2 {[%emt 0:01:26]} 30. Rf3 {[%emt 0:01:57]} Nc1 {[%emt 0:01:08]} 31. Nxa5 {[%emt 0:01:05]} Rbxb2 {[%emt 0:00:35]} 32. Nb3 {[%emt 0:00:34]} Nxb3 {[%emt 0:00:38]} 33. Raxb3 {[%emt 0:00:12]} Rc1+ {[%emt 0:00:07]} 0-1

[Event "Lliga Catalana 2024"]
[Site "Catalonia"]
[Date "2024.03.02"]
[Round "7.10"]
[White "Martinez Lopez, Carlos"]
[Black "Travesset Barba, Joaquim"]
[Result "1-0"]
[ECO "B01"]
[WhiteElo "2006"]
[BlackElo "2038"]
[Annotator "RC"]
[PlyCount "84"]
[EventDate "2024.01.18"]
[EventType "team-tourn"]
[EventCountry "ESP"]
[SourceTitle "playchess.com"]
[Source "ChessBase"]
[SourceQuality "1"]
[TimeControl "5400+30"]

1. e4 {[%emt 0:00:02]} d5 {[%emt 0:00:01]} 2. exd5 {[%emt 0:00:08]} Nf6 {[%emt 0:00:02]} 3. Bb5+ {[%emt 0:00:09]} Bd7 {[%emt 0:00:10]} 4. Be2 {[%emt 0:00:05]} Nxd5 {[%emt 0:00:03]} 5. d4 {[%emt 0:01:29]} Bf5 {[%emt 0:00:29]} 6. a3 {[%emt 0:01:27]} e6 {[%emt 0:00:09]} 7. Nf3 {[%emt 0:00:23]} c6 {[%emt 0:00:17]} 8. c4 {[%emt 0:00:57]} Nf6 {[%emt 0:01:40]} 9. Nc3 {[%emt 0:01:27]} Be7 {[%emt 0:00:18]} 10. Bf4 {[%emt 0:00:54]} O-O {[%emt 0:02:23]} 11. O-O {[%emt 0:00:22]} Nbd7 {[%emt 0:01:40]} 12. Nh4 {[%emt 0:06:06]} Bg6 {[%emt 0:00:45]} 13. Nxg6 {[%emt 0:00:16]} hxg6 {[%emt 0:00:03]} 14. b4 {[%emt 0:13:13]} a6 {[%emt 0:01:51]} 15. Bf3 {[%emt 0:01:41]} Nb6 {[%emt 0:01:56]} 16. Qd3 {[%emt 0:02:26]} Qd7 {[%emt 0:13:08]} 17. Rfd1 {[%emt 0:00:18]} Rfd8 {[%emt 0:02:11]} 18. Qe2 {[%emt 0:01:07]} Rac8 {[%emt 0:03:26]} 19. Rab1 {[%emt 0:01:28]} Na8 {[%emt 0:04:40]} 20. a4 {[%emt 0:05:35]} Bd6 {[%emt 0:08:46]} 21. Bg5 {[%emt 0:04:02]} Re8 {[%emt 0:06:41]} 22. Qa2 {[%emt 0:03:39]} Qc7 {[%emt 0:08:06]} 23. g3 {[%emt 0:00:55]} Nh7 {[%emt 0:06:58]} 24. Be3 {[%emt 0:01:00]} Qe7 {[%emt 0:00:27]} 25. Qb3 {[%emt 0:01:43]} Ng5 {[%emt 0:12:08]} 26. Bg2 {[%emt 0:00:27]} Qf6 {[%emt 0:02:58]} 27. f4 {[%emt 0:01:33]} Nh7 {[%emt 0:00:35]} 28. Ne4 {[%emt 0:00:15]} Qe7 {[%emt 0:00:16]} 29. Nxd6 {[%emt 0:01:59]} Qxd6 {[%emt 0:00:03]} 30. d5 {[%emt 0:00:34]} cxd5 {[%emt 0:04:06]} 31. cxd5 {[%emt 0:00:25]} exd5 {[%emt 0:03:20]} 32. Bxd5 {[%emt 0:01:59]} Qe7 {[%emt 0:04:44]} 33. Re1 {[%emt 0:01:31]} Nf6 {[%emt 0:00:30]} 34. Bf2 {[%emt 0:01:05]} Qd7 {[%emt 0:00:18]} 35. Bf3 {[%emt 0:01:11]} Rxe1+ {[%emt 0:00:14]} 36. Rxe1 {[%emt 0:00:03]} b5 {[%emt 0:02:05]} 37. axb5 {[%emt 0:01:52]} Qxb5 {[%emt 0:00:48]} 38. Re7 {[%emt 0:02:32]} Rc1+ {[%emt 0:01:00]} 39. Be1 {[%emt 0:00:59]} Rxe1+ {[%emt 0:08:23]} 40. Rxe1 {[%emt 0:00:02]} Nb6 {[%emt 0:00:13]} 41. Re5 {[%emt 0:05:48]} Qd7 {[%emt 0:00:24]} 42. Qc3 {[%emt 0:02:49]} Qa7 {[%emt 0:03:15]} 1-0

[Event "Lliga Catalana 2024"]
[Site "Catalonia"]
[Date "2024.03.02"]
[Round "7.10"]
[White "Martinez Lopez, Carlos"]
[Black "Travesset Ribera, Joaquin"]
[Result "*"]
[ECO "B01"]
[WhiteElo "2006"]
[BlackElo "2136"]
[Annotator "NA RC"]
[PlyCount "38"]
[EventDate "2024.01.18"]
[EventType "team-tourn"]
[EventCountry "ESP"]
[SourceTitle "playchess.com"]
[Source "ChessBase"]
[SourceQuality "1"]
[TimeControl "5400+30"]

1. e4 {[%emt 0:00:02]} d5 {[%emt 0:00:01]} 2. exd5 {[%emt 0:00:08]} Nf6 {[%emt 0:00:02]} 3. Bb5+ {[%emt 0:00:09]} Bd7 {[%emt 0:00:10]} 4. Be2 {[%emt 0:00:05]} Nxd5 {[%emt 0:00:03]} 5. d4 {[%emt 0:01:29]} Bf5 {[%emt 0:00:29]} 6. a3 {[%emt 0:01:27]} e6 {[%emt 0:00:09]} 7. Nf3 {[%emt 0:00:23]} c6 {[%emt 0:00:17]} 8. c4 {[%emt 0:00:57]} Nf6 {[%emt 0:01:40]} 9. Nc3 {[%emt 0:01:27]} Be7 {[%emt 0:00:18]} 10. Bf4 {[%emt 0:00:54]} O-O {[%emt 0:02:23]} 11. O-O {[%emt 0:00:22]} Nbd7 {[%emt 0:01:40]} 12. Nh4 {[%emt 0:06:06]} Bg6 {[%emt 0:00:45]} 13. Nxg6 {[%emt 0:00:16]} hxg6 {[%emt 0:00:03]} 14. b4 {[%emt 0:13:13]} a6 {[%emt 0:01:51]} 15. Bf3 {[%emt 0:01:41]} Nb6 {[%emt 0:01:56]} 16. Qd3 {[%emt 0:02:26]} Qd7 {[%emt 0:13:08]} 17. Rfd1 {[%emt 0:00:18]} Rfd8 {[%emt 1:14:05]} 18. Qe2 {[%emt 0:01:07]} Rac8 {[%emt 0:03:26]} 19. Rab1 {[%emt 0:01:28]} Na8 {[%emt 0:04:40]} *

[Event "Lliga Catalana 2024"]
[Site "Catalonia"]
[Date "2024.03.02"]
[Round "7.10"]
[White "Escudero Ribo, Eloi"]
[Black "Pinsach Gelabert, Alexandre"]
[Result "1-0"]
[ECO "E64"]
[WhiteElo "1982"]
[BlackElo "2150"]
[Annotator "RC"]
[PlyCount "147"]
[EventDate "2024.01.18"]
[EventType "team-tourn"]
[EventCountry "ESP"]
[SourceTitle "playchess.com"]
[Source "ChessBase"]
[SourceQuality "1"]
[TimeControl "5400+30"]

1. Nf3 {[%emt 0:00:06]} Nf6 {[%emt 0:01:13]} 2. c4 {[%emt 0:00:11]} g6 {[%emt 0:00:31]} 3. d4 {[%emt 0:00:11]} Bg7 {[%emt 0:00:09]} 4. g3 {[%emt 0:00:09]} O-O {[%emt 0:00:15]} 5. Bg2 {[%emt 0:00:07]} d6 {[%emt 0:00:17]} 6. Nc3 {[%emt 0:00:17]} c5 {[%emt 0:03:27]} 7. h3 {[%emt 0:02:09]} cxd4 {[%emt 0:03:30]} 8. Nxd4 {[%emt 0:00:32]} Qb6 {[%emt 0:04:01]} 9. O-O {[%emt 0:04:00]} Nc6 {[%emt 0:01:42]} 10. Nc2 {[%emt 0:06:24]} Bd7 {[%emt 0:07:10]} 11. b3 {[%emt 0:02:45]} Rac8 {[%emt 0:02:47]} 12. Bb2 {[%emt 0:00:51]} a6 {[%emt 0:03:05]} 13. e4 {[%emt 0:01:33]} Qa7 {[%emt 0:09:43]} 14. Qd2 {[%emt 0:07:07]} Ne5 {[%emt 0:06:14]} 15. Kh2 {[%emt 0:08:44]} Qc5 {[%emt 0:09:38]} 16. Ba3 {[%emt 0:11:48]} Qa5 {[%emt 0:26:43]} 17. Bb4 {[%emt 0:03:15]} Qc7 {[%emt 0:04:37]} 18. Nd5 {[%emt 0:03:03]} Nxd5 {[%emt 0:00:29]} 19. exd5 {[%emt 0:00:22]} Bf5 {[%emt 0:11:26]} 20. f4 {[%emt 0:08:00]} Bxc2 {[%emt 0:02:09]} 21. fxe5 {[%emt 0:05:29]} Bf5 {[%emt 0:00:02]} 22. exd6 {[%emt 0:00:45]} exd6 {[%emt 0:02:22]} 23. Bc3 {[%emt 0:00:39]} Bxc3 {[%emt 0:00:00]} 24. Qxc3 {[%emt 0:00:01]} b5 {[%emt 0:00:00]} 25. Qf6 {[%emt 0:04:36]} Bd3 {[%emt 0:00:00]} 26. Rfd1 {[%emt 0:02:28]} bxc4 {[%emt 0:00:00]} 27. Rac1 {[%emt 0:02:44]} Qd7 {[%emt 0:00:14]} 28. Qf4 {[%emt 0:01:55]} Rfd8 {[%emt 0:02:10]} 29. bxc4 {[%emt 0:00:30]} Qf5 {[%emt 0:00:00]} 30. Qd4 {[%emt 0:05:18]} Be2 {[%emt 0:00:17]} 31. Rd2 {[%emt 0:01:27]} Re8 {[%emt 0:00:54]} 32. Re1 {[%emt 0:04:26]} Bf3 {[%emt 0:00:52]} 33. Rf1 {[%emt 0:00:39]} Re4 {[%emt 0:00:15]} 34. Qd3 {[%emt 0:01:05]} Re2 {[%emt 0:00:44]} 35. Qxe2 {[%emt 0:01:08]} Bxe2 {[%emt 0:00:25]} 36. Rxf5 {[%emt 0:00:05]} gxf5 {[%emt 0:00:07]} 37. Rxe2 {[%emt 0:00:03]} Rxc4 {[%emt 0:00:05]} 38. Rb2 {[%emt 0:02:15]} Ra4 {[%emt 0:00:51]} 39. Bf1 {[%emt 0:00:55]} Rd4 {[%emt 0:00:52]} 40. Bxa6 {[%emt 0:01:13]} Rxd5 {[%emt 0:00:01]} 41. Bb5 {[%emt 0:00:17]} Rd1 {[%emt 0:00:57]} 42. a4 {[%emt 0:00:14]} Kf8 {[%emt 0:00:38]} 43. Ra2 {[%emt 0:01:07]} Rc1 {[%emt 0:00:27]} 44. a5 {[%emt 0:00:12]} Rc7 {[%emt 0:00:07]} 45. a6 {[%emt 0:00:15]} Ra7 {[%emt 0:00:02]} 46. Bd3 {[%emt 0:00:16]} Ke7 {[%emt 0:01:15]} 47. Bxf5 {[%emt 0:00:57]} h6 {[%emt 0:00:02]} 48. Bd3 {[%emt 0:00:12]} Kf6 {[%emt 0:00:48]} 49. Rb2 {[%emt 0:00:37]} Ra8 {[%emt 0:00:23]} 50. Rb7 {[%emt 0:02:23]} Ke5 {[%emt 0:00:59]} 51. Rxf7 {[%emt 0:00:56]} Kd4 {[%emt 0:00:01]} 52. Bf1 {[%emt 0:00:13]} d5 {[%emt 0:00:21]} 53. a7 {[%emt 0:00:39]} Kc5 {[%emt 0:00:49]} 54. Bg2 {[%emt 0:00:45]} Kb6 {[%emt 0:00:11]} 55. Bxd5 {[%emt 0:00:36]} Rxa7 {[%emt 0:00:01]} 56. Rxa7 {[%emt 0:00:09]} Kxa7 {[%emt 0:00:02]} 57. Kg2 {[%emt 0:00:09]} Kb6 {[%emt 0:00:03]} 58. Kf3 {[%emt 0:00:06]} Kc5 {[%emt 0:00:01]} 59. Bf7 {[%emt 0:00:09]} Kd6 {[%emt 0:00:10]} 60. Kg4 {[%emt 0:00:10]} Ke7 {[%emt 0:00:10]} 61. Bc4 {[%emt 0:00:15]} Kf6 {[%emt 0:00:10]} 62. Kh5 {[%emt 0:00:07]} Kg7 {[%emt 0:00:12]} 63. Bd3 {[%emt 0:00:05]} Kg8 {[%emt 0:00:19]} 64. Kxh6 {[%emt 0:00:09]} Kh8 {[%emt 0:00:01]} 65. g4 {[%emt 0:00:09]} Kg8 {[%emt 0:00:01]} 66. g5 {[%emt 0:00:08]} Kh8 {[%emt 0:00:02]} 67. g6 {[%emt 0:00:08]} Kg8 {[%emt 0:00:01]} 68. Bc4+ {[%emt 0:00:18]} Kf8 {[%emt 0:00:16]} 69. g7+ {[%emt 0:00:05]} Ke7 {[%emt 0:00:07]} 70. g8=Q {[%emt 0:00:08]} Kd7 {[%emt 0:00:25]} 71. Qe6+ {[%emt 0:00:12]} Kc7 {[%emt 0:00:03]} 72. Bb5 {[%emt 0:00:15]} Kb7 {[%emt 0:00:17]} 73. Qc6+ {[%emt 0:00:09]} Ka7 {[%emt 0:00:12]} 74. Ba6 {[%emt 0:00:07]} 1-0